Workbook

Sheet 경기남부
A1: 사업지구 | B1: 용도 | C1: 블록명 | D1: 지번 | E1: 면적(㎡) | F1: 평 | G1: 단가(㎡당/원) | H1: 평당단가 | I1: 공급금액(원) | J1: 건폐율 | K1: 용적율 | L1: 비고
A2: 장안첨단 | B2: 주차장 | C2: J-18 | D2: 수촌리 1475-2 | E2: 4404.9 | F2: =E2*0.3025 -> 1332.48225 | G2: =I2/E2 -> 347000 | H2: =G2*3.3 -> 1145100 | I2: 1528500300 | J2: 건축법,주차장법, 화성시 건축조례에 의함
B3: 계 | C3: =COUNTA(C2:C2) -> 1 | E3: =SUM(E2:E2) -> 4404.9 | F3: 1332.48225 | I3: =SUM(I2:I2) -> 1528500300
A4: 평택오성 | B4: 지원시설 | C4: 지원7 | D4: 양교리 1089 | E4: 3125.7 | F4: 945.52425 | G4: =I4/E4 -> 533000 | H4: =G4*3.3 -> 1758900 | I4: 1665998100 | J4: 0.7 | K4: 250% 이하
C5: 지원8 | D5: 양교리 1089-3 | E5: 4102 | F5: 1240.855 | G5: 570000 | H5: 1881000 | I5: 2338140000
C6: 지원11 | D6: 양교리 1094-3 | E6: 1474.3 | F6: 445.97575 | G6: 466000 | H6: 1537800 | I6: 687023800
C7: 지원3 | D7: 양교리 1094-6 | E7: 2032.9 | F7: 614.95225 | G7: 544000 | H7: 1795200 | I7: 1105897600
C8: 지원4 | D8: 양교리 1094-7 | E8: 1657.8 | F8: 501.4845 | G8: 518000 | H8: 1709400 | I8: 858740400
C9: 지원5 | D9: 양교리 1094-8 | E9: 1557.8 | F9: 471.2345 | G9: 518000 | H9: 1709400 | I9: 806940400
C10: 지원6 | D10: 양교리 1094-9 | E10: 1731.8 | F10: 523.8695 | G10: 518000 | H10: 1709400 | I10: 897072400
B11: 주차장 | C11: 주1 | D11: 양교리 1089-2 | E11: 1599.7 | F11: 483.90925 | G11: 406000 | H11: 1339800 | I11: 649478200 | J11: 건축법,주차장법, 평택시 건축조례에 의함
B12: 계 | C12: =COUNTA(C4:C11) -> 8 | E12: =SUM(E4:E11) -> 17282 | F12: 5227.805 | I12: =SUM(I4:I11) -> 9009290900
A13: 원곡물류 | B13: 물류시설 | C13: D3-1 | D13: 칠곡리 915 | E13: 37808 | G13: =I13/E13 -> 473026.9998 | I13: 17884204810 | J13: 0.6 | K13: 250%이하
C14: D3-2 | D14: 칠곡리 916 | E14: 52775 | G14: 473026.9999 | I14: 24963999920
B15: 주차장 | C15: P1-1 | D15: 칠곡리 929 | E15: 2717 | F15: 821.8925 | G15: =I15/E15 -> 477000 | H15: =G15*3.3 -> 1574100 | I15: 1296009000 | J15: 0.6 | K15: 200%이하
C16: P2-1 | D16: 칠곡리 927-4 | E16: 1434.4 | F16: 433.906 | G16: =I16/E16 -> 482000 | H16: 1590600 | I16: 691380800
B17: 계 | C17: 4 | E17: =SUM(E13:E16) -> 94734.4 | F17: 28657.156 | I17: =SUM(I13:I16) -> 44835594530
A18: 합계 | C18: =C3+C12+C17 -> 13 | E18: =E3+E12+E17 -> 116421.3 | F18: =E18*0.3025 -> 35217.44325 | I18: =I3+I12+I17 -> 55373385730

Sheet 김포양촌
A1: 사업지구 | B1: 용도 | C1: 블록명 | D1: 지번 | E1: 면적(㎡) | F1: 평 | G1: 단가(㎡당/원) | H1: 평당단가 | I1: 공급금액(원) | J1: 건폐율 | K1: 용적율 | L1: 비고
A2: 김포양촌 | B2: 지원시설 | C2: 근생1-1 | D2: 학운리 2774 | E2: 2536.7 | F2: =E2*0.3025 -> 767.35175 | G2: =I2/E2 -> 1694000 | H2: =G2*3.3 -> 5590200 | I2: 4297169800 | J2: 0.7 | K2: 350% 이하
C3: 근생1-2 | D3: 학운리 2776 | E3: 1753.5 | F3: 530.43375 | G3: 1694000 | H3: 5590200 | I3: 2970429000
C4: 근생4-2 | D4: 학운리 2991 | E4: 1392.3 | F4: 421.17075 | G4: 1532000 | H4: 5055600 | I4: 2133003600
C5: 근생4-3 | D5: 학운리 2994 | E5: 1046.5 | F5: 316.56625 | G5: 1452000 | H5: 4791600 | I5: 1519518000
C6: 근생4-4 | D6: 학운리 2992 | E6: 1046.8 | F6: 316.657 | G6: 1452000 | H6: 4791600 | I6: 1519953600
C7: 근생8-1 | D7: 학운리 2757 | E7: 1934 | F7: 585.035 | G7: 1480000 | H7: 4884000 | I7: 2862320000
A8: 합계 | C8: =COUNTA(C2:C7) -> 6 | E8: =SUM(E2:E7) -> 9709.8 | F8: =E8*0.3025 -> 2937.2145 | I8: =SUM(I2:I7) -> 15302394000

Sheet 경기북부
A1: 사업지구 | B1: 용도 | C1: 블록명 | D1: 지번 | E1: 면적(㎡) | F1: 평 | G1: 단가(㎡당/원) | H1: 평당단가 | I1: 공급금액(원) | J1: 건폐율 | K1: 용적율 | L1: 비고
A2: 동두천2 | B2: 주차장 | C2: 주1 | D2: 동두천동 554-5 | E2: 1134.6 | F2: =E2*0.3025 -> 343.2165 | G2: =I2/E2 -> 274000 | H2: =G2*3.3 -> 904200 | I2: 310880400 | J2: 0.8 | K2: 400% 이하
B3: 계 | C3: =COUNTA(C2:C2) -> 1 | E3: =SUM(E2:E2) -> 1134.6 | F3: 343.2165 | I3: =SUM(I2:I2) -> 310880400
A4: 파주월롱 | B4: 산업시설 | C4: 산업4 | D4: 능산리 664 | E4: 3199.8 | G4: =I4/E4 -> 393872.742 | I4: 1260314000 | J4: 0.8 | K4: 350% 이하
B5: 지원시설 | C5: 지원1-1-5 | D5: 내포리 1634-5 | E5: 1491.6 | F5: 451.209 | G5: =I5/E5 -> 1080000 | H5: =G5*3.3 -> 3564000 | I5: 1610928000 | J5: 0.8 | K5: 400% 이하
C6: 지원4-2-2 | D6: 능산리 661-1 | E6: 1024.2 | F6: 309.8205 | G6: 1100000 | H6: 3630000 | I6: 1126620000
B7: 주차장 | C7: 주1 | D7: 내포리 1635 | E7: 2095.6 | F7: 633.919 | G7: 602000 | H7: 1986600 | I7: 1261551200
C8: 주2 | D8: 내포리 1636-6 | E8: 2960.6 | F8: 895.5815 | G8: 602000 | I8: 1782281200
B9: 계 | C9: =COUNTA(C4:C8) -> 5 | E9: =SUM(E4:E8) -> 10771.8 | F9: 3258.4695 | I9: =SUM(I4:I8) -> 7041694400
A10: 파주선유 | B10: 산업시설 | C10: 산업12-2 | D10: 향양리 697-8 | E10: 10472 | G10: =I10/E10 -> 379468.9649 | I10: 3973799000 | J10: 0.8 | K10: 350%이하
B11: 지원시설 | C11: 지원1-1-3 | D11: 향양리 704-2 | E11: 713.5 | F11: =E11*0.3025 -> 215.83375 | G11: 927000 | H11: =G11*3.3 -> 3059100 | I11: 661414500 | J11: 0.8 | K11: 400% 이하
C12: 지원1-2-3 | D12: 향양리 705-2 | E12: 1031.9 | F12: 312.14975 | G12: 955000 | H12: 3151500 | I12: 985464500
C13: 지원1-3-1 | D13: 향양리 705-4 | E13: 725.9 | F13: 219.58475 | G13: 955000 | I13: 693234500
C14: 지원1-3-2 | D14: 향양리 705-5 | E14: 795.7 | F14: 240.69925 | G14: 927000 | I14: 737613900
C15: 지원1-3-3 | D15: 향양리 705-6 | E15: 854.6 | F15: 258.5165 | G15: 927000 | I15: 792214200
C16: 지원2-1-1 | D16: 향양리 706-1 | E16: 769.5 | F16: 232.77375 | G16: 907000 | I16: 697936500
C17: 지원2-3-1 | D17: 향양리 707-1 | E17: 552.5 | F17: 167.13125 | G17: 890000 | I17: 491725000
C18: 지원5-1-1 | D18: 향양리 698-1 | E18: 734.1 | F18: 222.06525 | G18: 788000 | I18: 578470800
C19: 지원5-1-2 | D19: 향양리 698-2 | E19: 733.9 | F19: 222.00475 | G19: 788000 | I19: 578313200
C20: 지원5-1-4 | D20: 향양리 698-4 | E20: 734 | F20: 222.035 | G20: 828000 | I20: 607752000
C21: 지원5-1-5 | D21: 향양리 698-5 | E21: 734.2 | F21: 222.0955 | G21: 828000 | I21: 607917600
C22: 지원5-2-2 | D22: 향양리 699-1 | E22: 702 | F22: 212.355 | G22: 788000 | I22: 553176000
C23: 지원5-2-3 | D23: 향양리 699-2 | E23: 702 | F23: 212.355 | G23: 788000 | I23: 553176000
C24: 지원5-2-4 | D24: 향양리 699-3 | E24: 701.9 | F24: 212.32475 | G24: 788000 | I24: 553097200
B25: 주차장 | C25: 주13 | D25: 향양리 698 | E25: 1422.7 | F25: 430.36675 | G25: 520000 | H25: 1716000 | I25: 739804000 | J25: 0.8 | K25: 400% 이하
C26: 주6 | D26: 선유리 1374-5 | E26: 2050.3 | F26: 620.21575 | G26: 428000 | I26: 877528400
C27: 주7-1-2 | D27: 선유리 1366-5 | E27: 912.1 | F27: 275.91025 | G27: 534000 | I27: 487061400
B28: 계 | C28: =COUNTA(C10:C27) -> 18 | E28: =SUM(E10:E27) -> 25342.8 | F28: 7666.197 | I28: =SUM(I10:I27) -> 15169698700
A29: 파주당동 | B29: 주차장 | C29: 주1 | D29: 당동리 885 | E29: 940.1 | F29: 284.38025 | G29: =I29/E29 -> 333000 | H29: =G29*3.3 -> 1098900 | I29: 313053300 | J29: 0.8 | K29: 400%이하
B30: 계 | C30: 1 | E30: =SUM(E29:E29) -> 940.1 | F30: 284.38025 | I30: =SUM(I29:I29) -> 313053300
A31: 합계 | C31: =C3+C9+C28+C30 -> 25 | E31: =E3+E9+E28+E30 -> 38189.3 | F31: =E31*0.3025 -> 11552.26325 | I31: =I3+I9+I28+I30 -> 22835326800
